fUST/lending_fUST_20260322
["ID","MTS","AMOUNT","RATE_DAILY","PERIOD"]
[408677852,1774109457299,-500.0,0.00013698,2]
[408677853,1774109457309,-566.92113138,0.00013698,2]
[408677854,1774109457318,-500.0,0.00013698,2]
[408677855,1774109457329,-500.0,0.00013698,2]
[408677856,1774109457339,-500.0,0.00013698,2]
[408677857,1774109457350,-500.0,0.00013698,2]
[408677858,1774109457361,-500.0,0.00013698,2]
[408677859,1774109457371,-500.0,0.00013698,2]
[408677860,1774109457381,-500.0,0.00013698,2]
[408677861,1774109457391,-500.0,0.00013698,2]
[408677862,1774109457401,-500.0,0.00013698,2]
[408677863,1774109457411,-379.89,0.00013698,2]
[408677864,1774109457420,-500.0,0.00013698,2]
[408677865,1774109457430,-500.0,0.00013698,2]
[408677866,1774109457440,-500.0,0.00013698,2]
[408677867,1774109457450,-500.0,0.00013698,2]
[408677868,1774109457461,-500.0,0.00013698,2]
[408677869,1774109457471,-500.0,0.00013698,2]
[408677870,1774109457481,-500.0,0.00013698,2]
[408677871,1774109457491,-500.0,0.00013698,2]
[408677872,1774109457501,-500.0,0.00013698,2]
[408677873,1774109457511,-500.0,0.00013698,2]
[408677874,1774109457521,-500.0,0.00013698,2]
[408677875,1774109457531,-500.0,0.00013698,2]
[408677876,1774109457541,-500.0,0.00013698,2]
[408677877,1774109457551,-500.0,0.00013698,2]
[408677878,1774109457562,-500.0,0.00013698,2]
[408677879,1774109457571,-500.0,0.00013698,2]
[408677880,1774109457581,-500.0,0.00013698,2]
[408677881,1774109457591,-500.0,0.00013698,2]
[408677882,1774109457601,-500.0,0.00013698,2]
[408677883,1774109457611,-500.0,0.00013698,2]
[408677884,1774109457621,-500.0,0.00013699,2]
[408677885,1774109457632,-500.0,0.00013699,2]
[408677886,1774109457645,-500.0,0.00013699,2]
[408677887,1774109457657,-500.0,0.00013699,2]
[408677888,1774109457669,-500.0,0.00013699,2]
[408677889,1774109457680,-526.69803079,0.00013699,2]
[408677890,1774109457692,-156.0,0.00013699,2]
[408677891,1774109457704,-500.0,0.00013699,2]
[408677892,1774109457715,-180.01620146,0.00013699,2]
[408677893,1774109457726,-500.0,0.00013699,2]
[408677894,1774109457738,-17530.4241329,0.00013699,2]
[408677895,1774109457748,-2971.8791411,0.00013699,2]
[408677896,1774109457760,-1000.0,0.00013699,2]
[408677897,1774109457773,-7311.164404,0.00013699,2]
[408677898,1774109457784,-65000.0,0.00013699,2]
[408677899,1774109457795,-676.919247,0.00013699,2]
[408677900,1774109457806,-676.919247,0.00013699,2]
[408677901,1774109457818,-676.919247,0.00013699,2]
[408677902,1774109457828,-676.919247,0.00013699,2]
[408677903,1774109457839,-676.919247,0.00013699,2]
[408677904,1774109457852,-676.919247,0.00013699,2]
[408677905,1774109457862,-676.919247,0.00013699,2]
[408677906,1774109457872,-676.919247,0.00013699,2]
[408677907,1774109457883,-676.919247,0.00013699,2]
[408677908,1774109457893,-676.919247,0.00013699,2]
[408677909,1774109457904,-676.919247,0.00013699,2]
[408677910,1774109457914,-676.919247,0.00013699,2]
[408677911,1774109457924,-676.919247,0.00013699,2]
[408677912,1774109457936,-676.919247,0.00013699,2]
[408677913,1774109457949,-676.919247,0.00013699,2]
[408677914,1774109457959,-676.919247,0.00013699,2]
[408677915,1774109457969,-676.919247,0.00013699,2]
[408677916,1774109457980,-676.919247,0.00013699,2]
[408677917,1774109457990,-676.919247,0.00013699,2]
[408677918,1774109458001,-676.919256,0.00013699,2]
[408677919,1774109458011,-2855.049827,0.00013699,2]
[408677920,1774109458022,-2855.049827,0.00013699,2]
[408677921,1774109458032,-2855.049827,0.00013699,2]
[408677922,1774109458042,-2855.049827,0.00013699,2]
[408677923,1774109458053,-2855.049827,0.00013699,2]
[408677924,1774109458064,-2855.049827,0.00013699,2]
[408677925,1774109458074,-2855.049827,0.00013699,2]
[408677926,1774109458084,-2855.049827,0.00013699,2]
[408677927,1774109458096,-2855.049827,0.00013699,2]
[408677928,1774109458106,-2855.049827,0.00013699,2]
[408677929,1774109458116,-2855.049827,0.00013699,2]
[408677930,1774109458126,-2855.049827,0.00013699,2]
[408677931,1774109458136,-2855.049827,0.00013699,2]
[408677932,1774109458146,-2855.049827,0.00013699,2]
[408677933,1774109458157,-2855.049827,0.00013699,2]
[408677934,1774109458167,-2855.049827,0.00013699,2]
[408677935,1774109458176,-2855.049827,0.00013699,2]
[408677936,1774109458185,-2855.049827,0.00013699,2]
[408677937,1774109458195,-2855.049827,0.00013699,2]
[408677938,1774109458205,-2855.049835,0.00013699,2]
[408677939,1774109458215,-500.0,0.00013699,2]
[408677940,1774109458225,-500.0,0.00013699,2]
[408677941,1774109458234,-500.0,0.00013699,2]
[408677942,1774109458244,-500.0,0.00013699,2]
[408677943,1774109458254,-161.60561942,0.00013699,2]
[408677944,1774109458263,-500.0,0.00013699,2]
[408677945,1774109458273,-500.0,0.00013699,2]
[408677946,1774109458282,-500.0,0.00013699,2]
[408677947,1774109458292,-500.0,0.00013699,2]
[408677948,1774109458302,-161.15389365,0.00013699,2]
[408677949,1774109458311,-500.0,0.00013699,2]
[408677950,1774109458321,-500.0,0.00013699,2]
[408677951,1774109458330,-222.11949015,0.00013699,2]
[408677952,1774109458340,-500.0,0.00013699,2]
[408677953,1774109458350,-500.0,0.00013699,2]
[408677954,1774109458360,-161.09168775,0.00013699,2]
[408677955,1774109458370,-500.0,0.00013699,2]
[408677956,1774109458380,-500.0,0.00013699,2]
[408677957,1774109458390,-500.0,0.00013699,2]
[408677958,1774109458400,-500.0,0.00013699,2]
[408677959,1774109458409,-500.0,0.00013699,2]
[408677960,1774109458419,-500.0,0.00013699,2]
[408677961,1774109458428,-570.61809516,0.00013699,2]
[408677962,1774109458438,-500.0,0.00013699,2]
[408677963,1774109458447,-500.0,0.00013699,2]
[408677964,1774109458458,-500.0,0.00013699,2]
[408677965,1774109458468,-500.0,0.00013699,2]
[408677966,1774109458478,-166.54981749,0.00013699,2]
[408677967,1774109458488,-500.0,0.00013699,2]
[408677968,1774109458497,-500.0,0.00013699,2]
[408677969,1774109458506,-500.0,0.00013699,2]
[408677970,1774109458516,-500.0,0.00013699,2]
[408677971,1774109458525,-500.0,0.00013699,2]
[408677972,1774109458535,-151.0,0.00013699,2]
[408677973,1774109458544,-151.0,0.00013699,2]
[408677974,1774109458554,-151.0,0.00013699,2]
[408677975,1774109458563,-151.0,0.00013699,2]
[408677976,1774109458573,-151.0,0.00013699,2]
[408677977,1774109458583,-151.0,0.00013699,2]
[408677978,1774109458592,-151.0,0.00013699,2]
[408677979,1774109458602,-151.0,0.00013699,2]
[408677980,1774109458612,-151.0,0.00013699,2]
[408677981,1774109458621,-151.0,0.00013699,2]
[408677982,1774109458631,-151.0,0.00013699,2]
[408677983,1774109458644,-151.0,0.00013699,2]
[408677984,1774109458654,-151.0,0.00013699,2]
[408677985,1774109458664,-151.0,0.00013699,2]
[408677986,1774109458674,-151.0,0.00013699,2]
[408677987,1774109458684,-151.0,0.00013699,2]
[408677988,1774109458695,-151.0,0.00013699,2]
[408677989,1774109458705,-151.0,0.00013699,2]
[408677990,1774109458714,-151.0,0.00013699,2]
[408677991,1774109458725,-151.0,0.00013699,2]
[408677992,1774109458735,-151.0,0.00013699,2]
[408677993,1774109458745,-151.28648653,0.00013699,2]
[408677994,1774109458754,-151.0,0.00013699,2]
[408677995,1774109458764,-151.0,0.00013699,2]
[408677996,1774109458774,-151.0,0.00013699,2]
[408677997,1774109458783,-151.0,0.00013699,2]
[408677998,1774109458793,-151.0,0.00013699,2]
[408677999,1774109458802,-151.0,0.00013699,2]
[408678000,1774109458812,-151.0,0.00013699,2]
[408678001,1774109458822,-285.09709723,0.00013699,2]
[408678002,1774109458832,-151.0,0.00013699,2]
[408678003,1774109458842,-151.0,0.00013699,2]
[408678004,1774109458852,-151.0,0.00013699,2]
[408678005,1774109458861,-151.0,0.00013699,2]
[408678006,1774109458871,-151.0,0.00013699,2]
[408678007,1774109458881,-151.0,0.00013699,2]
[408678008,1774109458891,-151.0,0.00013699,2]
[408678009,1774109458901,-192.73212614,0.00013699,2]
[408678010,1774109458911,-151.0,0.00013699,2]
[408678011,1774109458920,-500.0,0.00013699,2]
[408678012,1774109458930,-500.0,0.00013699,2]
[408678013,1774109458939,-500.0,0.00013699,2]
[408678014,1774109458949,-500.0,0.00013699,2]
[408678015,1774109458959,-500.0,0.00013699,2]
[408678016,1774109458969,-500.0,0.00013699,2]
[408678017,1774109458979,-500.0,0.00013699,2]
[408678018,1774109458988,-500.0,0.00013699,2]
[408678019,1774109458998,-500.0,0.00013699,2]
[408678020,1774109459008,-500.0,0.00013699,2]
[408678021,1774109459018,-500.0,0.00013699,2]
[408678022,1774109459040,-500.0,0.00013699,2]
[408678023,1774109459051,-500.0,0.00013699,2]
[408678024,1774109459061,-593.53812711,0.00013699,2]
[408678025,1774109459072,-306.63678181,0.00013699,2]
[408678026,1774109459083,-159.08491751,0.00013699,2]
[408678027,1774109459094,-500.0,0.00013699,2]
[408678028,1774109459105,-500.0,0.00013699,2]
[408678029,1774109459115,-159.83455108,0.00013699,2]
[408678030,1774109459127,-165.16125926,0.00013699,2]
[408678031,1774109459137,-167.6627387,0.00013699,2]
[408678032,1774109459148,-500.0,0.00013699,2]
[408678033,1774109459158,-498.12626401,0.00013699,2]
[408678034,1774109459168,-523.48745351,0.00013699,2]
[408678035,1774109459180,-245.20184596,0.00013699,2]
[408678036,1774109459190,-539.71474247,0.00013699,2]
[408678037,1774109459201,-500.0,0.00013699,2]
[408678038,1774109459212,-500.0,0.00013699,2]
[408678039,1774109459227,-500.0,0.00013699,2]
[408678040,1774109459241,-500.0,0.00013699,2]
[408678041,1774109459253,-500.0,0.00013699,2]
[408678042,1774109459263,-500.0,0.00013699,2]
[408678043,1774109459274,-500.0,0.00013699,2]
[408678044,1774109459284,-160.04720459,0.00013699,2]
[408678045,1774109459296,-500.0,0.00013699,2]
[408678046,1774109459307,-500.0,0.00013699,2]
[408678047,1774109459533,-500.0,0.00013699,2]
[408678048,1774109459544,-500.0,0.00013699,2]
[408678049,1774109459555,-500.0,0.00013699,2]
[408678050,1774109459564,-500.0,0.00013699,2]
[408678051,1774109459574,-500.0,0.00013699,2]
[408678052,1774109459583,-500.0,0.00013699,2]
[408678053,1774109459593,-500.0,0.00013699,2]
[408678054,1774109459603,-160.82260133,0.00013699,2]
[408678055,1774109459612,-500.0,0.00013699,2]
[408678056,1774109459622,-500.0,0.00013699,2]
[408678057,1774109459632,-500.0,0.00013699,2]
[408678058,1774109459644,-500.0,0.00013699,2]
[408678059,1774109459655,-528.35085793,0.00013699,2]
[408678060,1774109459664,-500.0,0.00013699,2]
[408678061,1774109459674,-500.0,0.00013699,2]
[408678062,1774109459684,-500.0,0.00013699,2]
[408678063,1774109459695,-500.0,0.00013699,2]
[408678064,1774109459705,-151.0,0.00013699,2]
[408678065,1774109459717,-151.0,0.00013699,2]
[408678066,1774109459727,-151.0,0.00013699,2]
[408678067,1774109459737,-151.0,0.00013699,2]
[408678068,1774109459747,-1000.0,0.00013699,2]
[408678069,1774109459757,-300.0,0.00013699,2]
[408678070,1774109459767,-300.0,0.00013699,2]
[408678071,1774109459776,-300.0,0.00013699,2]
[408678072,1774109459786,-300.0,0.00013699,2]
[408678073,1774109459796,-300.0,0.00013699,2]
[408678074,1774109459806,-300.0,0.00013699,2]
[408678075,1774109459815,-300.0,0.00013699,2]
[408678076,1774109459825,-300.0,0.00013699,2]
[408678077,1774109459835,-560.48451727,0.00013699,2]
[408678078,1774109459845,-151.0,0.00013743,2]
[408678079,1774109459854,-208.0766078,0.0001375,2]
[408678080,1774109459864,-195.03894739,0.000138,2]
[408678081,1774109459873,-172.20316389,0.00013802,14]
[408678082,1774109459882,-1500.0,0.00013848,2]
[408678083,1774109459892,-1500.0,0.00013848,2]
[408678084,1774109459902,-1500.0,0.00013848,2]
[408678085,1774109459911,-1500.0,0.00013848,2]
[408678086,1774109459921,-1500.0,0.00013848,2]
[408678087,1774109459930,-1500.0,0.00013848,2]
[408678088,1774109459939,-1500.0,0.00013848,2]
[408678089,1774109459949,-1500.0,0.00013848,2]
[408678090,1774109459958,-2244.87041,0.00013848,2]
[408678091,1774109459967,-1500.0,0.00013848,2]
[408678092,1774109459977,-1500.0,0.00013848,2]
[408678093,1774109459987,-630.59339018,0.00013848,2]
[408678094,1774109459997,-2500.0,0.000139,2]
[408678095,1774109460007,-300.0,0.0001392,2]
[408678096,1774109460017,-156.0,0.00013943,2]
[408678097,1774109460027,-864.0,0.00013944,2]
[408678098,1774109460037,-162.37944299,0.00013952,14]
[408678099,1774109460048,-324.02062721,0.00014,50]
[408678100,1774109460058,-284.85755292,0.00014,7]
[408678101,1774109460069,-334182.3112362,0.00014,2]
[408678102,1774109460079,-170.20924775,0.00014039,14]
[408678103,1774109460089,-321.5986262,0.00014148,14]
[408678104,1774109460099,-236.75590028,0.00014148,14]
[408678105,1774109460109,-2579.17784983,0.00014153,2]
[408678106,1774109460119,-164.95574093,0.00014173,2]
[408678107,1774109460130,-200.0,0.00014199,2]
[408678108,1774109460140,-194.99977778,0.00014203,14]
[408678109,1774109460149,-152.0417379,0.00014203,14]
[408678110,1774109460159,-600.0,0.00014221,2]
[408678111,1774109460170,-196.2071437,0.00014237,2]
[408678112,1774109460179,-226.54350859,0.00014242,14]
[408678113,1774109460190,-237.29725647,0.00014242,14]
[408678114,1774109460199,-182.24627398,0.00014246,2]
[408678115,1774109460208,-200.0,0.00014246,2]
[408678116,1774109460218,-200.0,0.00014246,2]
[408678117,1774109460228,-182.0,0.00014247,3]
[408678118,1774109460238,-1000.0,0.00014247,2]
[408678119,1774109460248,-1000.0,0.00014247,2]
[408678120,1774109460258,-1000.0,0.00014247,2]
[408678121,1774109460268,-1000.0,0.00014247,2]
[408678122,1774109460278,-1000.0,0.00014247,2]
[408678123,1774109460288,-1000.0,0.00014247,2]
[408678124,1774109460298,-1000.0,0.00014247,2]
[408678125,1774109460308,-1000.0,0.00014247,2]
[408678126,1774109460317,-1000.0,0.00014247,2]
[408678127,1774109460327,-1000.0,0.00014247,2]
[408678128,1774109460336,-1000.0,0.00014247,2]
[408678129,1774109460346,-1000.0,0.00014247,2]
[408678130,1774109460357,-1000.0,0.00014247,2]
[408678131,1774109460367,-1051.88375714,0.00014247,2]
[408678132,1774109460379,-304.94335736,0.00014247,2]
[408678133,1774109460390,-468.4308069,0.00014247,2]
[408678134,1774109460402,-762.42934024,0.00014247,2]
[408678135,1774109460412,-250.0,0.00014247,2]
[408678136,1774109460422,-1000.0,0.00014247,2]
[408678137,1774109460436,-1124.50392514,0.00014247,2]
[408678138,1774109460445,-337.03096908,0.00014247,2]
[408678139,1774109460455,-1000.0,0.00014247,2]
[408678140,1774109460464,-1000.0,0.00014247,2]
[408678141,1774109460474,-1000.0,0.00014247,2]
[408678142,1774109460483,-1001.92346485,0.00014247,2]
[408678143,1774109460492,-1000.0,0.00014247,2]
[408678144,1774109460503,-1000.0,0.00014247,2]
[408678145,1774109460512,-1000.0,0.00014247,2]
[408678146,1774109460521,-1000.0,0.00014247,2]
[408678147,1774109460531,-1000.0,0.00014247,2]
[408678148,1774109460542,-1000.0,0.00014247,2]
[408678149,1774109460553,-1000.0,0.00014247,2]
[408678150,1774109460564,-619.33256069,0.00014247,2]
[408678151,1774109460573,-1000.0,0.00014247,2]
[408678152,1774109460583,-924.78321065,0.00014247,2]
[408678153,1774109460592,-1000.0,0.00014247,2]
[408678154,1774109460603,-1000.0,0.00014247,2]
[408678155,1774109460612,-1000.0,0.00014247,2]
[408678156,1774109460623,-250.0,0.00014247,2]
[408678157,1774109460634,-1000.0,0.00014247,2]
[408678158,1774109460648,-1000.0,0.00014247,2]
[408678159,1774109460659,-1000.0,0.00014247,2]
[408678160,1774109460668,-535.48802775,0.00014247,2]
[408678161,1774109460677,-1000.0,0.00014247,2]
[408678162,1774109460688,-1000.0,0.00014247,2]
[408678163,1774109460697,-1000.0,0.00014247,2]
[408678164,1774109460707,-1000.0,0.00014247,2]
[408678165,1774109460719,-1000.0,0.00014247,2]
[408678166,1774109460729,-1000.0,0.00014247,2]
[408678167,1774109460739,-1000.0,0.00014247,2]
[408678168,1774109460748,-1000.0,0.00014247,2]
[408678169,1774109460758,-1000.0,0.00014247,2]
[408678170,1774109460768,-1000.0,0.00014247,2]
[408678171,1774109460778,-1000.0,0.00014247,2]
[408678172,1774109460788,-1000.0,0.00014247,2]
[408678173,1774109460798,-1000.0,0.00014247,2]
[408678174,1774109460808,-1000.0,0.00014247,2]
[408678175,1774109460817,-1000.0,0.00014247,2]
[408678176,1774109460827,-1000.0,0.00014247,2]
[408678177,1774109460837,-1000.0,0.00014247,2]
[408678178,1774109460846,-1000.0,0.00014247,2]
[408678179,1774109460857,-1000.0,0.00014247,2]
[408678180,1774109460866,-1114.4963452,0.00014247,2]
[408678181,1774109460875,-1000.0,0.00014247,2]
[408678182,1774109460884,-1000.0,0.00014247,2]
[408678183,1774109460894,-953.79595021,0.00014247,2]
[408678184,1774109460903,-1000.0,0.00014247,2]
[408678185,1774109460913,-1000.0,0.00014247,2]
[408678186,1774109460922,-1000.0,0.00014247,2]
[408678187,1774109460931,-200.0,0.00014299,2]
[408678188,1774109460941,-352.87290253,0.000144,2]
[408678189,1774109460951,-2674.60743027,0.00014701,2]
[408678190,1774109460960,-153.43872844,0.00014752,14]
[408678191,1774109460969,-900.0,0.00014768,2]
[408678192,1774109460979,-1500.0,0.00014795,2]
[408678193,1774109460989,-1500.0,0.00014795,2]
[408678194,1774109460998,-1500.0,0.00014795,2]
[408678195,1774109461008,-463.44018311,0.00014795,2]
[408678196,1774109461018,-1500.0,0.00014795,2]
[408678197,1774109461028,-1500.0,0.00014795,2]
[408678198,1774109461040,-1500.0,0.00014795,2]
[408678199,1774109461050,-1500.0,0.00014795,2]
[408678200,1774109461059,-1500.0,0.00014795,2]
[408678201,1774109461068,-1500.0,0.00014795,2]
[408678202,1774109461078,-1500.0,0.00014795,2]
[408678203,1774109461088,-1500.0,0.00014795,2]
[408678204,1774109461099,-1397.9450661,0.00014795,2]
[408678205,1774109461109,-350.0,0.00014795,2]
[408678206,1774109461119,-1500.0,0.00014795,2]
[408678207,1774109461129,-553.1296863,0.00014795,2]
[408678208,1774109461138,-1500.0,0.00014795,2]
[408678209,1774109461148,-1101.92291257,0.00014795,2]
[408678210,1774109461159,-1500.0,0.00014795,2]
[408678211,1774109461168,-1176.14031507,0.00014795,2]
[408678212,1774109461179,-1500.0,0.00014795,2]
[408678213,1774109461189,-1500.0,0.00014795,2]
[408678214,1774109461199,-1187.08681579,0.00014795,2]
[408678215,1774109461209,-1500.0,0.00014795,2]
[408678216,1774109461219,-1500.0,0.00014795,2]
[408678217,1774109461228,-1500.0,0.00014795,2]
[408678218,1774109461238,-889.83197006,0.00014795,2]
[408678219,1774109461248,-1500.0,0.00014795,2]
[408678220,1774109461258,-1500.0,0.00014795,2]
[408678221,1774109461268,-350.0,0.00014795,2]
[408678222,1774109461278,-1500.0,0.00014795,2]
[408678223,1774109461288,-1500.0,0.00014795,2]
[408678224,1774109461297,-1500.0,0.00014795,2]
[408678225,1774109461308,-1500.0,0.00014795,2]
[408678226,1774109461317,-1500.0,0.00014795,2]
[408678227,1774109461327,-1500.0,0.00014795,2]
[408678228,1774109461337,-1500.0,0.00014795,2]
[408678229,1774109461346,-1500.0,0.00014795,2]
[408678230,1774109461357,-1500.0,0.00014795,2]
[408678231,1774109461368,-1500.0,0.00014795,2]
[408678232,1774109461377,-1500.0,0.00014795,2]
[408678233,1774109461386,-1500.0,0.00014795,2]
[408678234,1774109461397,-1500.0,0.00014795,2]
[408678235,1774109461407,-1500.0,0.00014795,2]
[408678236,1774109461418,-1500.0,0.00014795,2]
[408678237,1774109461427,-1500.0,0.00014795,2]
[408678238,1774109461437,-1500.0,0.00014795,2]
[408678239,1774109461447,-1500.0,0.00014795,2]
[408678240,1774109461458,-459.66704797,0.00014795,2]
[408678241,1774109461468,-1500.0,0.00014795,2]
[408678242,1774109461478,-1500.0,0.00014795,2]
[408678243,1774109461488,-1500.0,0.00014795,2]
[408678244,1774109461498,-1500.0,0.00014795,2]
[408678245,1774109461508,-1500.0,0.00014795,2]
[408678246,1774109461518,-1500.0,0.00014795,2]
[408678247,1774109461527,-1632.79559683,0.00014795,2]
[408678248,1774109461537,-1500.0,0.00014795,2]
[408678249,1774109461547,-318.95607643,0.00014839,14]
[408678250,1774109461557,-2500.0,0.000149,2]
[408678251,1774109461567,-599.25639524,0.000149,2]
[408678252,1774109461577,-252.97007024,0.00014949,14]
[408678253,1774109461587,-160.05937201,0.00014973,2]
[408678254,1774109461597,-1026.33480434,0.00015,2]
[408678255,1774109461607,-508.02837449,0.00015,2]
[408678256,1774109461617,-1000.0,0.00015,15]
[408678257,1774109461627,-161.11005801,0.00015,2]
[408678258,1774109461637,-1006.84402931,0.00015,7]
[408678259,1774109461649,-195.2179585,0.00015,2]
[408678260,1774109461659,-396.29426441,0.00015,7]
[408678261,1774109461668,-152.03250498,0.00015,2]
[408678262,1774109461677,-3722.0,0.00015,2]
[408678263,1774109461688,-200.0,0.00015,2]
[408678264,1774109461697,-514.0,0.00015,2]
[408678265,1774109461707,-21480.0,0.00015,2]
[408678266,1774109461717,-182368.36146882,0.00015,2]
[408678267,1774109461726,-10125.9954636,0.00015,2]
[408678268,1774109461736,-242.76773534,0.00015057,2]
[408678269,1774109461746,-808.542934,0.00015068,2]
[408678270,1774109461755,-203.08317943,0.00015068,2]
[408678271,1774109461764,-276.23222777,0.0001515,20]
[408678272,1774109461774,-10125.9954636,0.000152,2]
[408678273,1774109461784,-2773.56790519,0.00015249,2]
[408678274,1774109461793,-162.37944299,0.0001527,30]
[408678275,1774109461803,-10125.9954636,0.000153,2]
[408678276,1774109461813,-1200.0,0.00015316,2]
[408678277,1774109461822,-1000.0,0.00015339,2]
[408678278,1774109461832,-184.0,0.00015342,3]
[408678279,1774109461842,-2000.0,0.00015342,2]
[408678280,1774109461852,-2000.0,0.00015342,2]
[408678281,1774109461861,-1750.97492164,0.00015342,2]
[408678282,1774109461871,-2000.0,0.00015342,2]
[408678283,1774109461881,-920.20364159,0.00015342,2]
[408678284,1774109461891,-2000.0,0.00015342,2]
[408678285,1774109461901,-1001.54435735,0.00015342,2]
[408678286,1774109461911,-2000.0,0.00015342,2]
[408678287,1774109461920,-2000.0,0.00015342,2]
[408678288,1774109461930,-2000.0,0.00015342,2]
[408678289,1774109461939,-2148.26455707,0.00015342,2]
[408678290,1774109461949,-450.0,0.00015342,2]
[408678291,1774109461958,-343.88944506,0.00015342,2]
[408678292,1774109461968,-2000.0,0.00015342,2]
[408678293,1774109461978,-2000.0,0.00015342,2]
[408678294,1774109461987,-550.87459012,0.00015342,2]
[408678295,1774109461997,-951.17940544,0.00015342,2]
[408678296,1774109462007,-1140.7612364,0.00015342,2]
[408678297,1774109462017,-2000.0,0.00015342,2]
[408678298,1774109462027,-2000.0,0.00015342,2]
[408678299,1774109462037,-2070.52132978,0.00015342,2]
[408678300,1774109462046,-2065.52588273,0.00015342,2]
[408678301,1774109462056,-450.0,0.00015342,2]
[408678302,1774109462066,-1656.59092143,0.00015342,2]
[408678303,1774109462076,-2000.0,0.00015342,2]
[408678304,1774109462086,-2000.0,0.00015342,2]
[408678305,1774109462095,-2000.0,0.00015342,2]
[408678306,1774109462106,-2000.0,0.00015342,2]
[408678307,1774109462118,-2000.0,0.00015342,2]
[408678308,1774109462128,-2000.0,0.00015342,2]
[408678309,1774109462137,-153.58466057,0.00015342,2]
[408678310,1774109462149,-2000.0,0.00015342,2]
[408678311,1774109462159,-2000.0,0.00015342,2]
[408678312,1774109462170,-1540.75323257,0.00015342,2]
[408678313,1774109462180,-2000.0,0.00015342,2]
[408678314,1774109462190,-2000.0,0.00015342,2]
[408678315,1774109462200,-2000.0,0.00015342,2]
[408678316,1774109462210,-2000.0,0.00015342,2]
[408678317,1774109462221,-2000.0,0.00015342,2]
[408678318,1774109462231,-2000.0,0.00015342,2]
[408678319,1774109462242,-2000.0,0.00015342,2]
[408678320,1774109462252,-903.16742668,0.00015342,2]
[408678321,1774109462262,-2000.0,0.00015342,2]
[408678322,1774109462272,-2000.0,0.00015342,2]
[408678323,1774109462282,-2000.0,0.00015342,2]
[408678324,1774109462292,-2000.0,0.00015342,2]
[408678325,1774109462302,-2000.0,0.00015342,2]
[408678326,1774109462312,-2000.0,0.00015342,2]
[408678327,1774109462322,-170.20924775,0.00015385,30]
[408678328,1774109462331,-1500.0,0.00015479,2]
[408678329,1774109462342,-12437.22846887,0.00015491,2]
[408678330,1774109462353,-500.0,0.000155,2]
[408678331,1774109462363,-500.0,0.000155,2]
[408678332,1774109462372,-500.0,0.000155,2]
[408678333,1774109462382,-760.84630934,0.000155,2]
[408678334,1774109462391,-600.0,0.000155,2]
[408678335,1774109462401,-600.0,0.000155,2]
[408678336,1774109462410,-600.0,0.000155,2]
[408678337,1774109462420,-1900.0,0.000155,2]
[408678338,1774109462430,-600.0,0.000155,2]
[408678339,1774109462440,-1900.0,0.000155,2]
[408678340,1774109462449,-600.0,0.000155,2]
[408678341,1774109462460,-1900.0,0.000155,2]
[408678342,1774109462469,-600.0,0.000155,2]
[408678343,1774109462479,-1900.0,0.000155,2]
[408678344,1774109462489,-600.0,0.000155,2]
[408678345,1774109462499,-1900.0,0.000155,2]
[408678346,1774109462509,-600.0,0.000155,2]
[408678347,1774109462519,-1900.0,0.000155,2]
[408678348,1774109462528,-600.0,0.000155,2]
[408678349,1774109462540,-1900.0,0.000155,2]
[408678350,1774109462549,-600.0,0.000155,2]
[408678351,1774109462559,-1900.0,0.000155,2]